fUST/lending_fUST_20250723
["ID","MTS","AMOUNT","RATE_DAILY","PERIOD"]
[374319993,1753273855851,-641.49978633,0.00021973,2]
[374319996,1753273855861,-552.78730248,0.00021973,2]
[374319998,1753273855874,-500.0,0.00021973,2]
[374320000,1753273855885,-500.0,0.00021973,2]
[374320002,1753273855895,-500.0,0.00021973,2]
[374320004,1753273855905,-500.0,0.00021973,2]
[374320006,1753273855917,-500.0,0.00021973,2]
[374320008,1753273855927,-500.0,0.00021973,2]
[374320010,1753273855936,-500.0,0.00021973,2]
[374320012,1753273855946,-500.0,0.00021973,2]
[374320014,1753273855957,-500.0,0.00021973,2]
[374320016,1753273855968,-500.0,0.00021973,2]
[374320017,1753273855977,-500.0,0.00021973,2]
[374320019,1753273855987,-500.0,0.00021973,2]
[374320022,1753273855996,-500.0,0.00021973,2]
[374320024,1753273856006,-386.60069791,0.00021973,2]
[374320026,1753273856016,-644.41561795,0.00021973,2]
[374320027,1753273856026,-500.0,0.00021973,2]
[374320030,1753273856036,-500.0,0.00021973,2]
[374320031,1753273856046,-500.0,0.00021973,2]
[374320034,1753273856055,-500.0,0.00021973,2]
[374320035,1753273856065,-500.8524135,0.00021973,2]
[374320037,1753273856074,-500.0,0.00021973,2]
[374320039,1753273856083,-500.0,0.00021973,2]
[374320041,1753273856093,-500.0,0.00021973,2]
[374320043,1753273856102,-500.0,0.00021973,2]
[374320046,1753273856111,-500.0,0.00021973,2]
[374320048,1753273856120,-500.0,0.00021973,2]
[374320050,1753273856130,-500.0,0.00021973,2]
[374320052,1753273856139,-500.0,0.00021973,2]
[374320054,1753273856149,-578.18285853,0.00021973,2]
[374320056,1753273856158,-500.0,0.00021973,2]
[374320057,1753273856168,-500.0,0.00021998,2]
[374320060,1753273856177,-151.0,0.00022,7]
[374320062,1753273856187,-1686.05,0.00022,7]
[374320064,1753273856196,-15224.89,0.00022,7]
[374320065,1753273856205,-3683.24,0.00022,7]
[374320068,1753273856216,-153.353469,0.00022,7]
[374320070,1753273856225,-151.0,0.00022,7]
[374320071,1753273856235,-73462.62,0.00022,2]
[374320074,1753273856244,-208.944323,0.00022,7]
[374320076,1753273856254,-202.996896,0.00022,7]
[374320078,1753273856264,-202.996896,0.00022,7]
[374320080,1753273856274,-592.327966,0.00022,7]
[374320082,1753273856283,-592.327966,0.00022,7]
[374320084,1753273856292,-151.0,0.00022,7]
[374320086,1753273856302,-151.0,0.00022,7]
[374320088,1753273856311,-151.0,0.00022,7]
[374320090,1753273856320,-151.0,0.00022,7]
[374320092,1753273856329,-5984.392739,0.00022,7]
[374320094,1753273856339,-5984.392739,0.00022,7]
[374320096,1753273856349,-151.0,0.00022,9]
[374320098,1753273856358,-188.538818,0.00022,7]
[374320100,1753273856367,-188.538818,0.00022,7]
[374320102,1753273856376,-151.0,0.00022,7]
[374320103,1753273856385,-151.0,0.00022,7]
[374320105,1753273856394,-151.0,0.00022,7]
[374320107,1753273856403,-151.0,0.00022,7]
[374320109,1753273856412,-676.966354,0.00022,7]
[374320111,1753273856421,-676.966354,0.00022,7]
[374320113,1753273856430,-383.736464,0.00022,7]
[374320115,1753273856439,-383.736464,0.00022,7]
[374320117,1753273856449,-7000.0,0.00022,3]
[374320120,1753273856458,-167.0,0.00022,2]
[374320122,1753273856468,-214.67886746,0.00022,7]
[374320124,1753273856477,-12622.36869388,0.00022,7]
[374320126,1753273856487,-476.696448,0.00022,7]
[374320128,1753273856496,-160.0,0.00022,7]
[374320129,1753273856505,-353.00342351,0.00022,2]
[374320131,1753273856514,-51689.51562154,0.00022,2]
[374320145,1753273856624,-551.01397171,0.00022,2]
[374320147,1753273856634,-20493.81048452,0.00022,2]
[374320149,1753273856644,-400.0,0.00022,3]
[374320151,1753273856653,-151.0,0.00022,7]
[374320153,1753273856663,-160.0,0.00022,7]
[374320155,1753273856672,-151.0,0.00022,7]
[374320157,1753273856681,-325.310964,0.00022,7]
[374320159,1753273856690,-272.0,0.00022,2]
[374320161,1753273856699,-2276.0,0.00022057,2]
[374320163,1753273856709,-151.0,0.00022057,7]
[374320165,1753273856718,-151.0,0.00022057,7]
[374320167,1753273856727,-151.0,0.00022057,7]
[374320169,1753273856737,-234.475609,0.00022057,7]
[374320171,1753273856746,-234.475609,0.00022057,7]
[374320173,1753273856756,-151.0,0.00022057,7]
[374320175,1753273856766,-3435.77922592,0.00022063,2]
[374320177,1753273856775,-153.0,0.00022082,2]
[374320179,1753273856784,-168.0,0.00022086,2]
[374320181,1753273856795,-2917.49321932,0.00022091,2]
[374320183,1753273856804,-5272.3,0.00022099,5]
[374320185,1753273856814,-3935.05668947,0.000221,2]
[374320187,1753273856824,-2500.0,0.00022145,2]
[374320189,1753273856834,-2276.0,0.00022158,2]
[374320192,1753273856843,-151.721524,0.00022164,7]
[374320194,1753273856852,-500.0,0.00022164,2]
[374320196,1753273856862,-321.0,0.00022171,2]
[374320197,1753273856873,-9850.76,0.00022191,2]
[374320200,1753273856883,-1357.95,0.00022191,2]
[374320202,1753273856893,-4334.0,0.00022191,2]
[374320204,1753273856902,-3683.06,0.00022191,2]
[374320205,1753273856911,-460.0,0.00022191,2]
[374320208,1753273856922,-2078.02,0.00022191,2]
[374320210,1753273856931,-2180.38,0.00022191,2]
[374320212,1753273856941,-2198.41,0.00022191,2]
[374320214,1753273856952,-151.0,0.00022191,7]
[374320215,1753273856962,-151.0,0.00022191,7]
[374320218,1753273856972,-151.0,0.00022191,7]
[374320219,1753273856981,-460.0,0.00022191,2]
[374320222,1753273856992,-460.0,0.00022191,2]
[374320224,1753273857002,-748.033699,0.00022191,7]
[374320226,1753273857011,-556.24,0.00022191,2]
[374320228,1753273857021,-748.033699,0.00022191,7]
[374320230,1753273857031,-561.73,0.00022191,2]
[374320232,1753273857041,-460.0,0.00022191,2]
[374320234,1753273857050,-460.0,0.00022191,2]
[374320236,1753273857060,-3668.304709,0.00022191,7]
[374320238,1753273857069,-3668.304709,0.00022191,7]
[374320240,1753273857079,-660.92,0.00022191,2]
[374320242,1753273857089,-1574.89,0.00022191,2]
[374320244,1753273857101,-151.0,0.00022191,7]
[374320246,1753273857110,-460.0,0.00022191,2]
[374320248,1753273857119,-151.0,0.00022191,7]
[374320250,1753273857128,-532.39,0.00022191,2]
[374320252,1753273857139,-2605.37,0.00022191,2]
[374320254,1753273857149,-657.49,0.00022191,2]
[374320256,1753273857158,-1140.417002,0.00022191,7]
[374320258,1753273857168,-151.0,0.00022191,7]
[374320260,1753273857177,-1140.417002,0.00022191,7]
[374320262,1753273857187,-460.0,0.00022191,2]
[374320264,1753273857196,-460.0,0.00022191,2]
[374320266,1753273857206,-1058.059424,0.00022191,7]
[374320268,1753273857215,-1058.059424,0.00022191,7]
[374320270,1753273857224,-4209.98,0.00022191,2]
[374320273,1753273857234,-151.0,0.00022191,2]
[374320274,1753273857244,-151.0,0.00022191,2]
[374320277,1753273857253,-713.1,0.00022191,2]
[374320279,1753273857262,-509.11,0.00022191,2]
[374320281,1753273857271,-460.0,0.00022191,2]
[374320282,1753273857281,-626.74,0.00022191,2]
[374320285,1753273857290,-550.2,0.00022191,2]
[374320286,1753273857299,-153.443753,0.00022191,7]
[374320289,1753273857308,-2493.34,0.00022191,2]
[374320291,1753273857318,-153.443753,0.00022191,7]
[374320293,1753273857328,-686.89,0.00022191,2]
[374320295,1753273857337,-588.08,0.00022191,2]
[374320297,1753273857346,-576.74,0.00022191,2]
[374320299,1753273857356,-519.84,0.00022191,2]
[374320301,1753273857365,-3644.9,0.00022191,2]
[374320303,1753273857375,-496.79,0.00022191,2]
[374320305,1753273857384,-460.0,0.00022191,2]
[374320307,1753273857393,-1158.744708,0.00022191,7]
[374320309,1753273857403,-1158.744708,0.00022191,7]
[374320311,1753273857413,-727.6,0.00022191,2]
[374320313,1753273857423,-1462.50032,0.00022191,7]
[374320315,1753273857432,-1055.41,0.00022191,2]
[374320317,1753273857441,-1462.50032,0.00022191,7]
[374320319,1753273857451,-1183.71,0.00022191,2]
[374320321,1753273857460,-460.0,0.00022191,2]
[374320323,1753273857469,-405.712595,0.00022191,7]
[374320325,1753273857478,-405.712595,0.00022191,7]
[374320327,1753273857488,-3408.17,0.00022191,2]
[374320329,1753273857498,-460.0,0.00022191,2]
[374320331,1753273857507,-703.26,0.00022191,2]
[374320333,1753273857517,-460.0,0.00022191,2]
[374320335,1753273857526,-460.0,0.00022191,2]
[374320337,1753273857536,-460.0,0.00022191,2]
[374320339,1753273857545,-1086.09,0.00022191,2]
[374320341,1753273857555,-973.04,0.00022191,2]
[374320343,1753273857564,-1260.0,0.00022192,2]
[374320345,1753273857574,-802.0,0.00022192,2]
[374320347,1753273857583,-272.0,0.00022192,7]
[374320349,1753273857594,-560.0,0.00022199,2]
[374320351,1753273857603,-5329.48055953,0.00022365,2]
[374320354,1753273857613,-151.0,0.00022389,7]
[374320356,1753273857622,-151.0,0.00022389,7]
[374320358,1753273857632,-151.0,0.00022389,7]
[374320359,1753273857641,-151.0,0.00022389,7]
[374320361,1753273857650,-151.0,0.00022389,7]
[374320364,1753273857660,-151.0,0.00022389,7]
[374320366,1753273857670,-151.0,0.00022389,7]
[374320368,1753273857679,-151.0,0.00022389,7]
[374320370,1753273857689,-151.426985,0.00022389,7]
[374320372,1753273857699,-641.198339,0.00022389,7]
[374320374,1753273857708,-641.198339,0.00022389,7]
[374320376,1753273857717,-151.0,0.00022389,7]
[374320378,1753273857727,-151.0,0.00022389,7]
[374320380,1753273857736,-151.0,0.00022389,7]
[374320382,1753273857745,-175.014685,0.00022389,7]
[374320383,1753273857754,-175.014685,0.00022389,7]
[374320385,1753273857763,-704.297764,0.00022389,7]
[374320387,1753273857773,-704.297764,0.00022389,7]
[374320389,1753273857782,-287.257331,0.00022389,7]
[374320391,1753273857791,-383.193019,0.00022389,7]
[374320393,1753273857801,-383.193019,0.00022389,7]
[374320396,1753273857811,-500.0,0.00022389,2]
[374320398,1753273857820,-215.0738,0.00022389,2]
[374320400,1753273857830,-500.0,0.00022389,2]
[374320402,1753273857839,-151.0,0.00022389,2]
[374320403,1753273857850,-500.0,0.00022389,2]
[374320406,1753273857860,-151.0,0.00022389,2]
[374320408,1753273857870,-151.0,0.00022389,2]
[374320410,1753273857883,-500.0,0.00022389,2]
[374320411,1753273857892,-151.0,0.00022389,2]
[374320413,1753273857902,-151.0,0.00022389,2]
[374320416,1753273857913,-151.0,0.00022389,2]
[374320418,1753273857923,-151.0,0.00022389,2]
[374320420,1753273857933,-500.0,0.00022389,2]
[374320421,1753273857942,-151.0,0.00022389,2]
[374320424,1753273857952,-151.0,0.00022389,2]
[374320425,1753273857962,-500.0,0.00022389,2]
[374320427,1753273857973,-151.0,0.00022389,2]
[374320429,1753273857982,-151.0,0.00022389,2]
[374320432,1753273857992,-500.0,0.00022389,2]
[374320433,1753273858002,-151.0,0.00022389,2]
[374320436,1753273858012,-151.98065924,0.00022389,2]
[374320438,1753273858022,-500.0,0.00022389,2]
[374320440,1753273858031,-151.0,0.00022389,2]
[374320442,1753273858041,-151.0,0.00022389,2]
[374320444,1753273858051,-3801.642,0.00022389,2]
[374320446,1753273858060,-500.0,0.00022389,2]
[374320448,1753273858070,-152.71936777,0.00022389,2]
[374320450,1753273858079,-151.0,0.00022389,2]
[374320452,1753273858089,-500.0,0.00022389,2]
[374320454,1753273858099,-151.0,0.00022389,2]
[374320456,1753273858108,-500.0,0.00022389,2]
[374320458,1753273858118,-151.0,0.00022389,2]
[374320460,1753273858127,-151.0,0.00022389,2]
[374320462,1753273858136,-500.0,0.00022389,2]
[374320463,1753273858145,-151.0,0.00022389,2]
[374320466,1753273858155,-151.0,0.00022389,2]
[374320468,1753273858165,-151.0,0.00022389,2]
[374320470,1753273858174,-500.0,0.00022389,2]
[374320472,1753273858183,-151.0,0.00022389,2]
[374320474,1753273858192,-500.0,0.00022389,2]
[374320476,1753273858201,-151.0,0.00022389,2]
[374320478,1753273858211,-500.0,0.00022389,2]
[374320480,1753273858220,-151.0,0.00022389,2]
[374320482,1753273858229,-500.0,0.00022389,2]
[374320484,1753273858239,-151.0,0.00022389,2]
[374320486,1753273858248,-500.0,0.00022389,2]
[374320488,1753273858258,-151.0,0.00022389,2]
[374320490,1753273858268,-500.0,0.00022389,2]
[374320492,1753273858277,-151.0,0.00022389,2]
[374320494,1753273858287,-627.67361628,0.00022389,2]
[374320496,1753273858296,-151.0,0.00022389,2]
[374320498,1753273858306,-151.0,0.00022389,2]
[374320500,1753273858315,-25000.0,0.00022389,2]
[374320502,1753273858324,-151.0,0.00022389,2]
[374320504,1753273858333,-151.0,0.00022389,2]
[374320506,1753273858342,-151.0,0.00022389,2]
[374320508,1753273858351,-151.0,0.00022389,2]
[374320510,1753273858361,-7237.33451009,0.00022389,2]
[374320512,1753273858370,-151.0,0.0002241,7]
[374320514,1753273858379,-407.376389,0.0002241,7]
[374320516,1753273858389,-407.376389,0.0002241,7]
[374320518,1753273858399,-631.5096,0.0002241,7]
[374320520,1753273858408,-3435.77922592,0.00022411,2]
[374320522,1753273858418,-5272.3,0.00022437,5]
[374320524,1753273858428,-799.57338713,0.00022444,2]
[374320555,1753273858701,-3142.72936687,0.00022444,2]
[374320557,1753273858712,-151.0,0.00022465,7]
[374320559,1753273858721,-226.66677,0.00022465,7]
[374320561,1753273858731,-226.66677,0.00022465,7]
[374320563,1753273858740,-151.0,0.00022465,7]
[374320565,1753273858750,-151.0,0.00022465,7]
[374320567,1753273858759,-9850.76,0.00022465,2]
[374320569,1753273858768,-1357.95,0.00022465,2]
[374320571,1753273858778,-4334.0,0.00022465,2]
[374320573,1753273858787,-3683.06,0.00022465,2]
[374320575,1753273858797,-460.0,0.00022465,2]
[374320577,1753273858807,-2078.02,0.00022465,2]
[374320579,1753273858816,-2180.38,0.00022465,2]
[374320581,1753273858826,-2198.41,0.00022465,2]
[374320583,1753273858836,-151.0,0.00022465,7]
[374320585,1753273858847,-151.0,0.00022465,7]
[374320587,1753273858856,-151.0,0.00022465,7]
[374320589,1753273858866,-151.0,0.00022465,7]
[374320592,1753273858880,-676.966354,0.00022465,7]
[374320593,1753273858889,-676.966354,0.00022465,7]
[374320596,1753273858899,-383.736464,0.00022465,7]
[374320598,1753273858909,-383.736464,0.00022465,7]
[374320599,1753273858920,-460.0,0.00022465,2]
[374320601,1753273858930,-460.0,0.00022465,2]
[374320604,1753273858940,-556.24,0.00022465,2]
[374320606,1753273858949,-561.73,0.00022465,2]
[374320607,1753273858959,-287.23818072,0.00022465,2]
[374320610,1753273858969,-460.0,0.00022465,2]
[374320612,1753273858980,-660.92,0.00022465,2]
[374320613,1753273858989,-1574.89,0.00022465,2]
[374320616,1753273858999,-460.0,0.00022465,2]
[374320617,1753273859009,-532.39,0.00022465,2]
[374320619,1753273859018,-2605.37,0.00022465,2]
[374320622,1753273859028,-657.49,0.00022465,2]
[374320623,1753273859037,-460.0,0.00022465,2]
[374320625,1753273859047,-460.0,0.00022465,2]
[374320627,1753273859056,-4209.98,0.00022465,2]
[374320629,1753273859066,-713.1,0.00022465,2]
[374320631,1753273859076,-509.11,0.00022465,2]
[374320633,1753273859085,-460.0,0.00022465,2]
[374320635,1753273859095,-626.74,0.00022465,2]
[374320637,1753273859104,-550.2,0.00022465,2]
[374320639,1753273859113,-2493.34,0.00022465,2]
[374320641,1753273859122,-686.89,0.00022465,2]
[374320643,1753273859132,-588.08,0.00022465,2]
[374320645,1753273859142,-576.74,0.00022465,2]
[374320647,1753273859153,-519.84,0.00022465,2]
[374320649,1753273859163,-3644.9,0.00022465,2]
[374320651,1753273859172,-496.79,0.00022465,2]
[374320653,1753273859182,-460.0,0.00022465,2]
[374320655,1753273859191,-727.6,0.00022465,2]
[374320657,1753273859201,-1055.41,0.00022465,2]
[374320659,1753273859211,-1183.71,0.00022465,2]
[374320661,1753273859221,-460.0,0.00022465,2]
[374320663,1753273859232,-3408.17,0.00022465,2]
[374320665,1753273859241,-460.0,0.00022465,2]
[374320667,1753273859251,-703.26,0.00022465,2]
[374320669,1753273859260,-460.0,0.00022465,2]
[374320671,1753273859269,-199.98117311,0.00022465,2]
[374320673,1753273859279,-258.44214248,0.00022465,2]
[374320675,1753273859288,-1086.09,0.00022465,2]
[374320677,1753273859297,-973.04,0.00022465,2]
[374320679,1753273859307,-1919.67,0.00022465,2]
[374320681,1753273859317,-1260.0,0.00022466,2]
[374320683,1753273859326,-802.0,0.00022466,2]
[374320685,1753273859335,-303.74147,0.0002247,8]
[374320687,1753273859345,-347.73201029,0.00022485,2]
[374320689,1753273859354,-13229.34252911,0.0002249,7]
[374320691,1753273859363,-4088.1679559,0.00022499,2]
[374320693,1753273859372,-3000.0,0.00022515,2]
[374320695,1753273859382,-1121.69907411,0.00022521,2]
[374320697,1753273859391,-1000.0,0.00022521,2]
[374320699,1753273859401,-500.0,0.00022521,2]
[374320701,1753273859410,-1000.0,0.00022521,2]
[374320703,1753273859420,-715.66741166,0.00022521,2]
[374320705,1753273859429,-1094.79640088,0.00022521,2]
[374320707,1753273859439,-808.34046914,0.00022521,2]
[374320709,1753273859448,-269.31324823,0.00022521,2]
[374320710,1753273859458,-1000.0,0.00022521,2]
[374320712,1753273859468,-1000.0,0.00022521,2]
[374320714,1753273859478,-1000.0,0.00022521,2]
[374320716,1753273859487,-1000.0,0.00022521,2]
[374320718,1753273859496,-1000.0,0.00022521,2]
[374320720,1753273859506,-1000.0,0.00022521,2]
[374320722,1753273859517,-1000.0,0.00022521,2]
[374320724,1753273859527,-1000.0,0.00022521,2]
[374320726,1753273859536,-501.11731388,0.00022521,2]
[374320728,1753273859546,-1000.0,0.00022521,2]
[374320730,1753273859555,-1000.0,0.00022521,2]
[374320733,1753273859566,-1000.0,0.00022521,2]
[374320734,1753273859577,-1000.89543393,0.00022521,2]
[374320736,1753273859587,-1000.0,0.00022521,2]
[374320739,1753273859596,-1000.0,0.00022521,2]
[374320741,1753273859607,-1000.0,0.00022521,2]
[374320742,1753273859617,-1000.0,0.00022521,2]
[374320745,1753273859627,-1000.0,0.00022521,2]
[374320746,1753273859637,-1000.0,0.00022521,2]
[374320748,1753273859647,-1000.0,0.00022521,2]
[374320750,1753273859656,-1097.99224489,0.00022521,2]
[374320752,1753273859666,-1057.1355728,0.00022521,2]
[374320755,1753273859676,-1000.0,0.00022521,2]
[374320756,1753273859686,-502.91265376,0.00022521,2]
[374320758,1753273859696,-1000.0,0.00022521,2]
[374320760,1753273859706,-1129.31904846,0.00022521,2]
[374320762,1753273859716,-1000.0,0.00022521,2]
[374320765,1753273859725,-1000.0,0.00022521,2]
[374320766,1753273859735,-151.0,0.00022521,7]
[374320768,1753273859744,-154.53974,0.00022521,7]
[374320771,1753273859754,-1634.78896283,0.00022554,2]
[374320772,1753273859763,-168.0,0.0002259,2]
[374320774,1753273859772,-2504.05,0.00022594,2]
[374320776,1753273859782,-4335.92334269,0.00022595,2]
[374320778,1753273859791,-2469.26643083,0.00022595,2]
[374320780,1753273859801,-248.592503,0.00022603,2]
[374320782,1753273859810,-548.21195986,0.00022603,2]
[374320784,1753273859820,-151.0,0.00022624,7]
[374320786,1753273859829,-168.0,0.00022625,2]
[374320788,1753273859838,-150.549056,0.0002263,3]
[374320790,1753273859849,-150.549056,0.0002263,3]
[374320792,1753273859859,-3435.77922597,0.00022641,2]
[374320794,1753273859869,-430.623676,0.00022655,2]
[374320796,1753273859880,-429.674968,0.00022655,2]
[374320798,1753273859889,-168.0,0.00022677,2]
[374320800,1753273859899,-3000.0,0.00022693,2]
[374320802,1753273859909,-2504.05,0.00022694,6]
[374320804,1753273859919,-2568.0,0.000227,2]
[374320806,1753273859928,-2568.0,0.000227,2]
[374320808,1753273859938,-2568.0,0.000227,2]
[374320810,1753273859947,-2568.0,0.000227,2]
[374320811,1753273859957,-2568.0,0.000227,2]
[374320813,1753273859967,-2568.0,0.000227,2]
[374320815,1753273859976,-2568.0,0.000227,2]
[374320817,1753273859986,-2568.0,0.000227,2]
[374320819,1753273859995,-2568.0,0.000227,2]
[374320821,1753273860005,-2568.0,0.000227,2]
[374320823,1753273860015,-168.48543,0.000227,7]
[374320826,1753273860026,-168.48543,0.000227,7]
[374320827,1753273860036,-151.0,0.000227,7]
[374320829,1753273860047,-151.0,0.000227,7]
[374320831,1753273860056,-325.310964,0.000227,7]
[374320833,1753273860066,-150.549056,0.00022717,2]
[374320835,1753273860076,-150.549056,0.00022717,2]
[374320837,1753273860086,-800.0,0.00022721,2]
[374320839,1753273860096,-9850.76,0.00022739,2]
[374320841,1753273860105,-1357.95,0.00022739,2]
[374320843,1753273860114,-4334.0,0.00022739,2]
[374320845,1753273860123,-3683.06,0.00022739,2]
[374320847,1753273860133,-460.0,0.00022739,2]
[374320849,1753273860142,-2078.02,0.00022739,2]
[374320851,1753273860151,-2180.38,0.00022739,2]
[374320853,1753273860161,-2198.41,0.00022739,2]
[374320855,1753273860171,-460.0,0.00022739,2]
[374320857,1753273860180,-539.26552541,0.00022739,2]
[374320859,1753273860190,-556.24,0.00022739,2]
[374320861,1753273860199,-561.73,0.00022739,2]
[374320863,1753273860209,-460.0,0.00022739,2]
[374320865,1753273860219,-660.92,0.00022739,2]
[374320867,1753273860229,-1574.89,0.00022739,2]
[374320868,1753273860238,-460.0,0.00022739,2]
[374320870,1753273860248,-532.39,0.00022739,2]
[374320872,1753273860257,-2605.37,0.00022739,2]
[374320874,1753273860267,-657.49,0.00022739,2]
[374320876,1753273860277,-460.0,0.00022739,2]
[374320878,1753273860287,-460.0,0.00022739,2]
[374320881,1753273860296,-4209.98,0.00022739,2]
[374320882,1753273860306,-151.0,0.00022739,2]
[374320884,1753273860315,-151.0,0.00022739,2]
[374320887,1753273860326,-713.1,0.00022739,2]
[374320888,1753273860335,-509.11,0.00022739,2]
[374320890,1753273860344,-153.58003465,0.00022739,2]
[374320892,1753273860354,-626.74,0.00022739,2]
[374320894,1753273860363,-550.2,0.00022739,2]
[374320896,1753273860373,-2493.34,0.00022739,2]
[374320898,1753273860383,-686.89,0.00022739,2]
[374320900,1753273860393,-588.08,0.00022739,2]
[374320902,1753273860402,-576.74,0.00022739,2]
[374320904,1753273860412,-519.84,0.00022739,2]
[374320906,1753273860423,-3644.9,0.00022739,2]
[374320908,1753273860433,-496.79,0.00022739,2]
[374320910,1753273860441,-460.0,0.00022739,2]
[374320921,1753273860544,-727.6,0.00022739,2]
[374320923,1753273860555,-1462.50032,0.00022739,7]
[374320925,1753273860565,-1055.41,0.00022739,2]
[374320927,1753273860575,-1462.50032,0.00022739,7]
[374320929,1753273860584,-1183.71,0.00022739,2]
[374320931,1753273860595,-405.712595,0.00022739,7]
[374320933,1753273860604,-460.0,0.00022739,2]
[374320935,1753273860613,-405.712595,0.00022739,7]
[374320937,1753273860623,-3408.17,0.00022739,2]
[374320939,1753273860633,-460.0,0.00022739,2]
[374320941,1753273860643,-703.26,0.00022739,2]
[374320943,1753273860653,-460.0,0.00022739,2]
[374320945,1753273860665,-1086.09,0.00022739,2]
[374320947,1753273860675,-973.04,0.00022739,2]
[374320949,1753273860685,-1260.0,0.0002274,2]
[374320951,1753273860694,-802.0,0.0002274,2]
[374320953,1753273860704,-277.123206,0.00022745,7]
[374320955,1753273860713,-277.123206,0.00022745,7]
[374320957,1753273860723,-800.0,0.00022747,2]
[374320959,1753273860734,-660.0,0.00022747,2]
[374320961,1753273860744,-800.0,0.00022756,2]
[374320963,1753273860754,-800.0,0.00022757,2]
[374320965,1753273860763,-5272.3,0.00022775,6]
[374320967,1753273860773,-800.0,0.00022783,2]
[374320969,1753273860782,-2504.05,0.00022794,7]
[374320971,1753273860792,-151.0,0.00022794,7]
[374320973,1753273860801,-151.0,0.00022794,7]
[374320975,1753273860810,-748.033699,0.00022794,7]
[374320977,1753273860820,-748.033699,0.00022794,7]
[374320979,1753273860829,-3668.304709,0.00022794,7]
[374320981,1753273860839,-3668.304709,0.00022794,7]
[374320983,1753273860849,-151.0,0.00022794,7]
[374320985,1753273860858,-153.222899,0.00022794,7]
[374320987,1753273860868,-1140.417002,0.00022794,7]
[374320989,1753273860882,-151.0,0.00022794,7]
[374320991,1753273860892,-1140.417002,0.00022794,7]
[374320993,1753273860901,-1058.059424,0.00022794,7]
[374320995,1753273860911,-1058.059424,0.00022794,7]
[374320997,1753273860925,-153.443753,0.00022794,7]
[374320999,1753273860935,-153.443753,0.00022794,7]
[374321001,1753273860944,-1158.744708,0.00022794,7]
[374321003,1753273860954,-1158.744708,0.00022794,7]
[374321005,1753273860964,-800.0,0.00022798,2]
[374321007,1753273860973,-151.0,0.00022829,7]
[374321009,1753273860983,-202.996896,0.00022829,7]
[374321010,1753273860992,-202.996896,0.00022829,7]
[374321012,1753273861002,-592.327966,0.00022829,7]
[374321014,1753273861011,-592.327966,0.00022829,7]
[374321016,1753273861021,-151.0,0.00022829,7]
[374321018,1753273861031,-5984.392739,0.00022829,7]
[374321020,1753273861040,-5984.392739,0.00022829,7]
[374321022,1753273861049,-800.0,0.00022832,2]
[374321024,1753273861059,-704.29401755,0.00022833,2]
[374321026,1753273861068,-168.0,0.00022849,8]
[374321028,1753273861078,-800.0,0.00022856,2]
[374321030,1753273861087,-160.0,0.00022857,3]
[374321032,1753273861096,-800.0,0.00022859,2]
[374321034,1753273861106,-800.0,0.00022883,2]
[374321036,1753273861115,-2504.076775,0.00022894,6]
[374321038,1753273861125,-151.0,0.00022894,7]
[374321040,1753273861134,-800.0,0.00022897,2]